[Event "NJSK 2024 A"]
[Site "Groningen, Netherlands"]
[Date "2024.05.03"]
[Round "7.2"]
[White "Slagboom, Leandro"]
[Black "Van Hesselingen, Guido"]
[Result "1-0"]
[TimeControl "90min/40moves + 30min + 30sec/move"]
[WhiteElo "2326"]
[BlackElo "2016"]

1. e4 {[%clk 01:30:57]} {[%emt 00:00:02]} e5 {[%clk 01:30:54]} {[%emt
00:00:06]} 2. Nf3 {[%clk 01:31:21]} {[%emt 00:00:06]} Nc6 {[%clk 01:31:19]}
{[%emt 00:00:05]} 3. Bb5 {[%clk 01:31:34]} {[%emt 00:00:18]} a6 {[%clk
01:31:33]} {[%emt 00:00:16]} 4. Ba4 {[%clk 01:31:58]} {[%emt 00:00:05]} Nf6
{[%clk 01:31:42]} {[%emt 00:00:20]} 5. O-O {[%clk 01:32:20]} {[%emt 00:00:08]}
Be7 {[%clk 01:31:57]} {[%emt 00:00:15]} 6. Re1 {[%clk 01:32:30]} {[%emt
00:00:20]} b5 {[%clk 01:31:51]} {[%emt 00:00:36]} 7. Bb3 {[%clk 01:32:55]}
{[%emt 00:00:06]} d6 {[%clk 01:32:18]} {[%emt 00:00:03]} 8. c3 {[%clk
01:33:17]} {[%emt 00:00:08]} O-O {[%clk 01:31:53]} {[%emt 00:00:54]} 9. h3
{[%clk 01:33:42]} {[%emt 00:00:05]} Na5 {[%clk 01:30:49]} {[%emt 00:01:34]} 10.
Bc2 {[%clk 01:33:33]} {[%emt 00:00:40]} c5 {[%clk 01:31:10]} {[%emt 00:00:09]}
11. d4 {[%clk 01:33:56]} {[%emt 00:00:08]} Qc7 {[%clk 01:30:36]} {[%emt
00:01:03]} 12. d5 {[%clk 01:33:59]} {[%emt 00:00:27]} c4 {[%clk 01:20:53]}
{[%emt 00:10:13]} 13. b4 {[%clk 01:33:49]} {[%emt 00:00:40]} cxb3 {[%clk
01:19:53]} {[%emt 00:01:31]} 14. axb3 {[%clk 01:34:11]} {[%emt 00:00:07]} Bd7
{[%clk 01:17:46]} {[%emt 00:02:37]} 15. Bd3 {[%clk 01:29:41]} {[%emt 00:05:00]}
Ne8 {[%clk 01:01:45]} {[%emt 00:16:31]} 16. Re2 {[%clk 01:27:52]} {[%emt
00:02:18]} Nb7 {[%clk 00:59:34]} {[%emt 00:02:41]} 17. b4 {[%clk 01:27:32]}
{[%emt 00:00:51]} g6 {[%clk 00:58:31]} {[%emt 00:01:33]} 18. Rea2 {[%clk
01:19:41]} {[%emt 00:08:21]} Qc8 {[%clk 00:53:35]} {[%emt 00:05:26]} 19. Bh6
{[%clk 01:00:00]} {[%emt 00:20:10]} Ng7 {[%clk 00:51:59]} {[%emt 00:02:07]} 20.
Qc2 {[%clk 00:46:00]} {[%emt 00:14:30]} f5 {[%emt 00:08:25]} 21. Nbd2 {[%clk
00:45:48]} Rf7 {[%clk 00:19:29]} {[%emt 00:25:47]} 22. Ng5 {[%clk 00:37:05]}
{[%emt 00:09:14]} Rf6 {[%clk 00:18:34]} {[%emt 00:01:24]} 23. Bxg7 {[%clk
00:34:01]} {[%emt 00:03:34]} Kxg7 {[%clk 00:18:55]} {[%emt 00:00:08]} 24. Rxa6
{[%clk 00:32:18]} {[%emt 00:02:13]} Rxa6 {[%clk 00:18:44]} {[%emt 00:00:42]} 25.
Rxa6 {[%clk 00:32:44]} {[%emt 00:00:04]} Nc5 {[%clk 00:18:47]} {[%emt
00:00:28]} 26. Ra7 {[%clk 00:31:39]} {[%emt 00:01:35]} Nxd3 {[%clk 00:12:55]}
{[%emt 00:06:21]} 27. Qxd3 {[%clk 00:31:42]} {[%emt 00:00:27]} Bd8 {[%clk
00:12:01]} {[%emt 00:01:24]} 28. Qxb5 {[%clk 00:29:42]} {[%emt 00:02:30]} Kh6
{[%clk 00:05:51]} {[%emt 00:06:40]} 29. Qxd7 {[%clk 00:29:15]} {[%emt
00:00:57]} Qxc3 {[%clk 00:05:58]} {[%emt 00:00:23]} 30. Qxh7+ {[%clk 00:29:29]}
{[%emt 00:00:16]} Kxg5 {[%clk 00:06:23]} {[%emt 00:00:05]} 31. Nf3+ {[%clk
00:29:54]} {[%emt 00:00:05]} Kf4 {[%clk 00:06:41]} {[%emt 00:00:12]} 32. Qh4#
{[%clk 00:29:48]} {[%emt 00:00:04]} 1-0

[Event "NJSK 2024 A"]
[Site "Groningen, Netherlands"]
[Date "2024.05.03"]
[Round "7.3"]
[White "Bakija, Alan"]
[Black "Blom, Rens"]
[Result "1-0"]
[TimeControl "90min/40moves + 30min + 30sec/move"]
[WhiteElo "2101"]
[BlackElo "1963"]

1. Nf3 {[%clk 01:30:57]} {[%emt 00:00:02]} c5 {[%clk 01:30:54]} {[%emt
00:00:07]} 2. c4 {[%clk 01:31:19]} {[%emt 00:00:07]} Nc6 {[%clk 01:31:16]}
{[%emt 00:00:08]} 3. g3 {[%clk 01:31:30]} {[%emt 00:00:19]} e5 {[%clk
01:31:34]} {[%emt 00:00:12]} 4. Nc3 {[%clk 01:31:56]} {[%emt 00:00:05]} g6
{[%clk 01:31:57]} {[%emt 00:00:07]} 5. Bg2 {[%clk 01:32:14]} {[%emt 00:00:11]}
Bg7 {[%clk 01:32:19]} {[%emt 00:00:09]} 6. O-O {[%clk 01:32:36]} {[%emt
00:00:07]} Nge7 {[%clk 01:32:44]} {[%emt 00:00:05]} 7. a3 {[%clk 01:33:02]}
{[%emt 00:00:05]} O-O {[%clk 01:32:39]} {[%emt 00:00:34]} 8. Rb1 {[%clk
01:33:29]} {[%emt 00:00:04]} a5 {[%clk 01:32:57]} {[%emt 00:00:12]} 9. Ne1
{[%clk 01:33:49]} {[%emt 00:00:10]} d6 {[%clk 01:32:32]} {[%emt 00:00:56]} 10.
Nc2 {[%clk 01:34:12]} {[%emt 00:00:04]} Be6 {[%clk 01:30:51]} {[%emt 00:02:12]}
11. Ne3 {[%clk 01:33:48]} {[%emt 00:00:53]} Rb8 {[%clk 01:27:45]} {[%emt
00:03:37]} 12. d3 {[%clk 01:33:14]} {[%emt 00:01:04]} Nd4 {[%clk 01:25:20]}
{[%emt 00:02:57]} 13. Ned5 {[%clk 01:26:54]} {[%emt 00:06:50]} b5 {[%clk
01:21:35]} {[%emt 00:04:15]} 14. Nxe7+ {[%clk 00:56:46]} {[%emt 00:30:37]} Qxe7
{[%clk 01:22:00]} {[%emt 00:00:05]} 15. e3 {[%clk 00:57:11]} {[%emt 00:00:05]}
b4 {[%clk 01:21:39]} {[%emt 00:00:52]} 16. Nd5 {[%clk 00:53:48]} {[%emt
00:03:53]} Bxd5 {[%clk 01:21:57]} {[%emt 00:00:10]} 17. Bxd5 {[%clk 00:54:13]}
{[%emt 00:00:06]} Ne6 {[%clk 01:21:06]} {[%emt 00:01:21]} 18. Qa4 {[%clk
00:43:38]} {[%emt 00:11:06]} Nc7 {[%clk 01:06:48]} {[%emt 00:14:48]} 19. Bg2
{[%clk 00:36:37]} {[%emt 00:07:31]} bxa3 {[%clk 01:03:44]} {[%emt 00:03:34]} 20.
Qxa3 {[%clk 00:36:52]} {[%emt 00:00:15]} Na6 {[%clk 01:03:21]} {[%emt
00:00:52]} 21. Qxa5 {[%clk 00:33:53]} {[%emt 00:03:29]} Nb4 {[%clk 01:03:39]}
{[%emt 00:00:12]} 22. Rd1 {[%clk 00:31:40]} {[%emt 00:02:42]} f5 {[%clk
01:00:14]} {[%emt 00:03:55]} 23. Ra1 {[%clk 00:23:21]} {[%emt 00:08:50]} e4
{[%clk 00:58:24]} {[%emt 00:02:20]} 24. dxe4 {[%clk 00:23:18]} {[%emt
00:00:34]} fxe4 {[%clk 00:58:47]} {[%emt 00:00:07]} 25. Rf1 {[%clk 00:09:12]}
{[%emt 00:14:35]} Nd3 {[%clk 00:57:08]} {[%emt 00:02:09]} 26. Ra2 {[%clk
00:07:39]} {[%emt 00:02:04]} Rb4 {[%clk 00:40:40]} {[%emt 00:16:58]} 27. Ra4
{[%clk 00:07:54]} {[%emt 00:00:16]} Nxc1 {[%clk 00:37:12]} {[%emt 00:03:57]} 28.
Rxc1 {[%clk 00:08:21]} {[%emt 00:00:02]} Rxb2 {[%clk 00:37:35]} {[%emt
00:00:08]} 29. Rf1 {[%clk 00:07:47]} {[%emt 00:01:03]} Rc2 {[%clk 00:31:54]}
{[%emt 00:06:11]} 30. Ra2 {[%clk 00:03:11]} {[%emt 00:05:05]} Rxc4 {[%clk
00:30:07]} {[%emt 00:02:19]} 31. Qa6 {[%clk 00:02:46]} {[%emt 00:00:54]} d5
{[%clk 00:27:30]} {[%emt 00:03:06]} 32. Rd2 {[%clk 00:02:29]} {[%emt 00:00:48]}
Qf7 {[%clk 00:21:14]} {[%emt 00:06:47]} 33. Qd6 {[%clk 00:02:02]} {[%emt
00:00:56]} Bc3 {[%clk 00:16:07]} {[%emt 00:05:37]} 34. Bh3 {[%clk 00:00:51]}
{[%emt 00:01:41]} Bxd2 {[%clk 00:07:35]} {[%emt 00:09:02]} 35. Be6 {[%clk
00:01:17]} {[%emt 00:00:04]} d4 {[%clk 00:07:57]} {[%emt 00:00:08]} 36. Bxf7+
{[%clk 00:01:10]} {[%emt 00:00:37]} Rxf7 {[%clk 00:08:23]} {[%emt 00:00:04]} 37.
Qd5 {[%clk 00:01:04]} {[%emt 00:00:36]} Rc3 {[%clk 00:08:39]} {[%emt 00:00:14]}
38. exd4 {[%clk 00:00:49]} {[%emt 00:00:45]} cxd4 {[%clk 00:05:07]} {[%emt
00:04:03]} 39. Qd8+ {[%clk 00:01:13]} {[%emt 00:00:06]} Rf8 {[%clk 00:05:14]}
{[%emt 00:00:22]} 40. Qd5+ {[%clk 00:01:27]} {[%emt 00:00:16]} Rf7 {[%clk
00:05:25]} {[%emt 00:00:20]} 41. Qxe4 {[%clk 00:15:12]} {[%emt 00:16:45]} Rcf3
{[%clk 00:31:26]} {[%emt 00:04:29]} 42. Kg2 {[%clk 00:12:34]} {[%emt 00:03:07]}
R3f6 {[%clk 00:27:15]} {[%emt 00:04:41]} 43. Qxd4 {[%clk 00:12:42]} {[%emt
00:00:22]} Ba5 {[%clk 00:27:33]} {[%emt 00:00:13]} 44. Qd5 {[%clk 00:08:39]}
{[%emt 00:04:32]} Rf5 {[%clk 00:27:42]} {[%emt 00:00:22]} 45. Qb3 {[%clk
00:08:57]} {[%emt 00:00:10]} R5f6 {[%clk 00:22:09]} {[%emt 00:06:04]} 46. f4
{[%clk 00:07:14]} {[%emt 00:02:12]} g5 {[%clk 00:12:31]} {[%emt 00:10:09]} 47.
f5 {[%clk 00:07:27]} {[%emt 00:00:17]} Kg7 {[%clk 00:12:52]} {[%emt 00:00:09]}
48. Qd5 {[%clk 00:07:07]} {[%emt 00:00:50]} Bc3 {[%clk 00:12:21]} {[%emt
00:01:01]} 49. Qf3 {[%clk 00:06:55]} {[%emt 00:00:42]} Rc7 {[%clk 00:11:09]}
{[%emt 00:01:42]} 50. Qe3 {[%clk 00:04:33]} {[%emt 00:02:52]} h6 {[%clk
00:10:33]} {[%emt 00:01:07]} 51. Qe8 {[%clk 00:04:42]} {[%emt 00:00:18]} Rff7
{[%clk 00:09:59]} {[%emt 00:01:06]} 52. Qe4 {[%clk 00:01:26]} {[%emt 00:03:45]}
Bf6 {[%clk 00:09:49]} {[%emt 00:00:41]} 53. Qg4 {[%clk 00:01:28]} {[%emt
00:00:27]} Kh7 {[%clk 00:09:44]} {[%emt 00:00:35]} 54. Qh5 {[%clk 00:01:27]}
{[%emt 00:00:31]} Rg7 {[%clk 00:09:47]} {[%emt 00:00:28]} 55. Rb1 {[%clk
00:00:51]} {[%emt 00:01:06]} g4 {[%clk 00:05:58]} {[%emt 00:04:18]} 56. Qe8
{[%clk 00:00:42]} {[%emt 00:00:40]} Bg5 {[%clk 00:05:35]} {[%emt 00:00:54]} 57.
Rb2 {[%clk 00:00:34]} {[%emt 00:00:37]} Rce7 {[%clk 00:05:12]} {[%emt
00:00:53]} 58. Qa4 {[%clk 00:00:47]} {[%emt 00:00:17]} Bf6 {[%clk 00:05:15]}
{[%emt 00:00:27]} 59. Rb6 {[%clk 00:00:38]} {[%emt 00:00:39]} Ra7 {[%clk
00:04:10]} {[%emt 00:01:35]} 60. Ra6 {[%clk 00:00:42]} {[%emt 00:00:26]} Rxa6
{[%clk 00:02:44]} {[%emt 00:01:56]} 61. Qxa6 {[%clk 00:01:10]} {[%emt
00:00:02]} Rf7 {[%clk 00:03:08]} {[%emt 00:00:06]} 62. Qc4 {[%clk 00:01:16]}
{[%emt 00:00:24]} Rg7 {[%clk 00:03:19]} {[%emt 00:00:19]} 63. Qe6 {[%clk
00:01:41]} {[%emt 00:00:05]} Bg5 {[%clk 00:01:40]} {[%emt 00:02:10]} 64. f6
{[%clk 00:01:24]} {[%emt 00:00:46]} Rc7 {[%clk 00:01:30]} {[%emt 00:00:39]} 65.
Qf5+ {[%clk 00:00:36]} {[%emt 00:01:19]} Kg8 {[%clk 00:01:29]} {[%emt
00:00:31]} 66. Qxg4 {[%clk 00:00:34]} {[%emt 00:00:32]} Kf7 {[%clk 00:01:40]}
{[%emt 00:00:19]} 67. Qh5+ {[%clk 00:00:59]} {[%emt 00:00:05]} Kxf6 {[%clk
00:01:39]} {[%emt 00:00:31]} 68. h4 {[%clk 00:00:55]} {[%emt 00:00:33]} Bc1
{[%clk 00:01:22]} {[%emt 00:00:48]} 69. Qd5 {[%clk 00:01:02]} {[%emt 00:00:23]}
Rc2+ {[%clk 00:00:43]} {[%emt 00:01:09]} 70. Kf3 {[%clk 00:01:27]} {[%emt
00:00:05]} Rc3+ {[%clk 00:01:06]} {[%emt 00:00:08]} 71. Kg4 {[%clk 00:01:52]}
{[%emt 00:00:04]} Bb2 {[%clk 00:00:58]} {[%emt 00:00:38]} 72. Qd6+ {[%clk
00:02:03]} {[%emt 00:00:19]} Kg7 {[%clk 00:01:09]} {[%emt 00:00:19]} 73. Kh5
{[%clk 00:02:13]} {[%emt 00:00:19]} Rf3 {[%clk 00:00:59]} {[%emt 00:00:40]} 74.
Qxh6+ {[%clk 00:02:21]} {[%emt 00:00:23]} Kg8 {[%clk 00:01:16]} {[%emt
00:00:13]} 75. Qg5+ {[%clk 00:02:21]} {[%emt 00:00:30]} Kh7 {[%clk 00:00:44]}
{[%emt 00:01:02]} 76. Qg6+ {[%clk 00:01:15]} {[%emt 00:01:36]} Kh8 {[%clk
00:01:13]} {[%emt 00:00:02]} 77. Qe8+ {[%clk 00:01:34]} {[%emt 00:00:11]} Kg7
{[%clk 00:01:30]} {[%emt 00:00:14]} 78. g4 {[%clk 00:01:18]} {[%emt 00:00:44]}
Rf7 {[%clk 00:01:38]} {[%emt 00:00:22]} 79. g5 {[%clk 00:01:28]} {[%emt
00:00:20]} Bc3 {[%clk 00:01:54]} {[%emt 00:00:14]} 80. Kg4 {[%clk 00:01:26]}
{[%emt 00:00:31]} Rf1 {[%clk 00:01:52]} {[%emt 00:00:33]} 81. Qd7+ {[%clk
00:01:39]} {[%emt 00:00:17]} Rf7 {[%clk 00:02:14]} {[%emt 00:00:09]} 82. Qd3
{[%clk 00:01:49]} {[%emt 00:00:19]} Be5 {[%clk 00:02:21]} {[%emt 00:00:22]} 83.
Qd5 {[%clk 00:02:04]} {[%emt 00:00:15]} Bc7 {[%clk 00:01:31]} {[%emt 00:01:20]}
84. Qd4+ {[%clk 00:02:09]} {[%emt 00:00:26]} Kg8 {[%clk 00:00:59]} {[%emt
00:01:02]} 85. h5 {[%clk 00:02:16]} {[%emt 00:00:23]} Kf8 {[%clk 00:00:35]}
{[%emt 00:00:55]} 86. g6 {[%clk 00:01:46]} {[%emt 00:00:59]} Rg7 {[%clk
00:00:34]} {[%emt 00:00:31]} 87. Qf6+ {[%clk 00:01:55]} {[%emt 00:00:20]} 1-0

[Event "NJSK 2024 A"]
[Site "Groningen, Netherlands"]
[Date "2024.05.03"]
[Round "7.4"]
[White "Wiersma, Camiel"]
[Black "Snijders, Take"]
[Result "1/2-1/2"]
[TimeControl "90min/40moves + 30min + 30sec/move"]
[WhiteElo "1963"]
[BlackElo "2090"]

1. c4 {[%clk 01:30:53]} {[%emt 00:00:06]} e5 {[%clk 01:30:53]} {[%emt
00:00:07]} 2. Nc3 {[%clk 01:31:19]} {[%emt 00:00:04]} Bb4 {[%clk 01:31:15]}
{[%emt 00:00:09]} 3. Nd5 {[%clk 01:31:44]} {[%emt 00:00:05]} Bc5 {[%clk
01:31:23]} {[%emt 00:00:22]} 4. b4 {[%clk 01:30:54]} {[%emt 00:01:20]} Bf8
{[%clk 01:28:46]} {[%emt 00:03:07]} 5. Qb3 {[%clk 01:21:43]} {[%emt 00:09:41]}
c6 {[%clk 01:24:27]} {[%emt 00:04:48]} 6. Nc3 {[%clk 01:21:28]} {[%emt
00:00:45]} Nf6 {[%clk 01:17:39]} {[%emt 00:07:18]} 7. e3 {[%clk 01:08:04]}
{[%emt 00:13:55]} d5 {[%clk 01:13:22]} {[%emt 00:04:47]} 8. cxd5 {[%clk
01:06:55]} {[%emt 00:01:38]} cxd5 {[%clk 01:12:23]} {[%emt 00:01:30]} 9. Nf3
{[%clk 01:04:26]} {[%emt 00:02:58]} e4 {[%clk 01:05:19]} {[%emt 00:07:34]} 10.
Nd4 {[%clk 00:55:35]} {[%emt 00:09:21]} Nc6 {[%clk 01:02:22]} {[%emt 00:03:26]}
11. Ncb5 {[%clk 00:43:28]} {[%emt 00:12:39]} Be7 {[%clk 00:38:12]} {[%emt
00:24:40]} 12. Ba3 {[%clk 00:36:06]} {[%emt 00:07:52]} O-O {[%clk 00:37:38]}
{[%emt 00:01:05]} 13. Rc1 {[%clk 00:36:07]} {[%emt 00:00:29]} Bd7 {[%clk
00:34:14]} {[%emt 00:03:53]} 14. Be2 {[%clk 00:33:16]} {[%emt 00:03:20]} a5
{[%clk 00:31:36]} {[%emt 00:03:10]} 15. Nxc6 {[%clk 00:23:23]} {[%emt
00:10:19]} bxc6 {[%clk 00:30:47]} {[%emt 00:01:22]} 16. Nd4 {[%clk 00:23:41]}
{[%emt 00:00:12]} axb4 {[%clk 00:30:00]} {[%emt 00:01:18]} 17. Bxb4 {[%clk
00:23:56]} {[%emt 00:00:15]} Bxb4 {[%clk 00:27:21]} {[%emt 00:03:08]} 18. Qxb4
{[%clk 00:24:24]} {[%emt 00:00:02]} Rxa2 {[%clk 00:26:46]} {[%emt 00:01:05]} 19.
Nxc6 {[%clk 00:24:16]} {[%emt 00:00:38]} Bxc6 {[%clk 00:26:41]} {[%emt
00:00:36]} 20. Rxc6 {[%clk 00:24:27]} {[%emt 00:00:18]} Ra1+ {[%clk 00:26:14]}
{[%emt 00:00:57]} 21. Bd1 {[%clk 00:24:29]} {[%emt 00:00:28]} Qd7 {[%clk
00:25:33]} {[%emt 00:01:11]} 22. Rxf6 {[%clk 00:12:24]} {[%emt 00:12:36]} gxf6
{[%clk 00:22:20]} {[%emt 00:03:43]} 23. O-O {[%clk 00:12:44]} {[%emt 00:00:10]}
Qf5 {[%clk 00:14:52]} {[%emt 00:07:58]} 24. f3 {[%clk 00:11:49]} {[%emt
00:01:24]} exf3 {[%clk 00:14:27]} {[%emt 00:00:55]} 25. Bxf3 {[%clk 00:12:17]}
{[%emt 00:00:01]} Rxf1+ {[%clk 00:14:45]} {[%emt 00:00:12]} 26. Kxf1 {[%clk
00:12:45]} {[%emt 00:00:02]} Rc8 {[%clk 00:12:00]} {[%emt 00:03:16]} 27. Ke2
{[%clk 00:12:22]} {[%emt 00:00:53]} Rd8 {[%clk 00:11:12]} {[%emt 00:01:18]} 28.
Qg4+ {[%clk 00:11:16]} {[%emt 00:01:36]} Qxg4 {[%clk 00:10:11]} {[%emt
00:01:30]} 29. Bxg4 {[%clk 00:11:45]} {[%emt 00:00:02]} Kf8 {[%clk 00:09:35]}
{[%emt 00:01:06]} 30. d4 {[%clk 00:12:00]} {[%emt 00:00:15]} Ke7 {[%clk
00:09:22]} {[%emt 00:00:44]} 31. Kf3 {[%clk 00:12:04]} {[%emt 00:00:25]} Ra8
{[%clk 00:08:12]} {[%emt 00:01:40]} 32. Kf4 {[%clk 00:12:07]} {[%emt 00:00:27]}
Ra3 {[%clk 00:07:34]} {[%emt 00:01:08]} 33. Bf3 {[%clk 00:09:55]} {[%emt
00:02:42]} Ke6 {[%clk 00:06:37]} {[%emt 00:01:27]} 34. Bg4+ {[%clk 00:10:14]}
{[%emt 00:00:11]} Kd6 {[%clk 00:06:51]} {[%emt 00:00:16]} 35. h4 {[%clk
00:08:11]} {[%emt 00:02:33]} h6 {[%clk 00:05:05]} {[%emt 00:02:16]} 36. Bh5
{[%clk 00:07:49]} {[%emt 00:00:52]} Ra2 {[%clk 00:04:29]} {[%emt 00:01:06]} 37.
Bf3 {[%clk 00:07:36]} {[%emt 00:00:42]} Ra7 {[%clk 00:02:48]} {[%emt 00:02:12]}
38. Kf5 {[%clk 00:05:08]} {[%emt 00:02:57]} Re7 {[%clk 00:02:39]} {[%emt
00:00:40]} 39. Kf4 {[%clk 00:04:32]} {[%emt 00:01:07]} f5 {[%clk 00:02:17]}
{[%emt 00:00:52]} 40. g3 {[%clk 00:03:52]} {[%emt 00:01:08]} Ke6 {[%clk
00:01:05]} {[%emt 00:01:43]} 41. Bg2 {[%clk 00:03:15]} {[%emt 00:01:08]} Kd6
{[%clk 00:22:05]} {[%emt 00:09:29]} 42. Bf3 {[%clk 00:31:23]} {[%emt 00:02:21]}
Re6 {[%clk 00:22:16]} {[%emt 00:00:20]} 43. Bg2 {[%clk 00:31:07]} {[%emt
00:00:45]} Re8 {[%clk 00:18:37]} {[%emt 00:04:09]} 44. Bf3 {[%clk 00:25:42]}
{[%emt 00:05:56]} Rg8 {[%clk 00:18:57]} {[%emt 00:00:11]} 45. Bh5 {[%clk
00:22:55]} {[%emt 00:03:16]} Ke6 {[%clk 00:18:59]} {[%emt 00:00:27]} 46. Be2
{[%clk 00:22:13]} {[%emt 00:01:12]} Ke7 {[%clk 00:16:27]} {[%emt 00:03:02]} 47.
Bf3 {[%clk 00:17:06]} {[%emt 00:05:37]} Kd6 {[%clk 00:16:37]} {[%emt 00:00:20]}
48. Bh5 {[%clk 00:12:32]} {[%emt 00:05:05]} Rg7 {[%clk 00:15:52]} {[%emt
00:01:16]} 49. Bd1 {[%clk 00:12:29]} {[%emt 00:00:32]} Ke6 {[%clk 00:14:55]}
{[%emt 00:01:27]} 50. Bh5 {[%clk 00:10:19]} {[%emt 00:02:39]} Rg8 {[%clk
00:12:42]} {[%emt 00:02:44]} 51. Be2 {[%clk 00:09:47]} {[%emt 00:01:01]} f6
{[%clk 00:12:46]} {[%emt 00:00:27]} 52. Bh5 {[%clk 00:08:33]} {[%emt 00:01:43]}
Rg7 {[%clk 00:10:20]} {[%emt 00:02:57]} 53. Be2 {[%clk 00:08:45]} {[%emt
00:00:17]} Kd6 {[%clk 00:08:57]} {[%emt 00:01:54]} 54. Bh5 {[%clk 00:08:14]}
{[%emt 00:01:00]} Ke7 {[%clk 00:05:31]} {[%emt 00:03:57]} 55. Bd1 {[%clk
00:07:22]} {[%emt 00:01:21]} Kf7 {[%clk 00:05:41]} {[%emt 00:00:20]} 56. Bf3
{[%clk 00:07:06]} {[%emt 00:00:46]} Ke6 {[%clk 00:06:06]} {[%emt 00:00:06]} 57.
Be2 {[%clk 00:07:08]} {[%emt 00:00:27]} Rg8 {[%clk 00:05:50]} {[%emt 00:00:46]}
58. Bh5 {[%clk 00:07:06]} {[%emt 00:00:31]} Kd6 {[%clk 00:04:31]} {[%emt
00:01:52]} 59. Be2 {[%clk 00:04:34]} {[%emt 00:03:01]} Kc6 {[%clk 00:04:38]}
{[%emt 00:00:23]} 60. Bf3 {[%clk 00:04:24]} {[%emt 00:00:40]} Rb8 {[%clk
00:03:03]} {[%emt 00:02:05]} 61. Kxf5 {[%clk 00:03:38]} {[%emt 00:01:15]} Rb3
{[%clk 00:03:33]} {[%emt 00:00:01]} 62. Kf4 {[%clk 00:03:11]} {[%emt 00:00:57]}
Rd3 {[%clk 00:03:10]} {[%emt 00:00:52]} 63. g4 {[%clk 00:02:36]} {[%emt
00:01:06]} Kd6 {[%clk 00:03:23]} {[%emt 00:00:17]} 64. Be2 {[%clk 00:02:06]}
{[%emt 00:01:00]} Rd2 {[%clk 00:03:42]} {[%emt 00:00:11]} 65. Bf3 {[%clk
00:02:24]} {[%emt 00:00:12]} Ke6 {[%clk 00:03:49]} {[%emt 00:00:24]} 66. g5
{[%clk 00:01:27]} {[%emt 00:01:26]} hxg5+ {[%clk 00:03:42]} {[%emt 00:00:38]}
67. hxg5 {[%clk 00:01:51]} {[%emt 00:00:06]} fxg5+ {[%clk 00:03:29]} {[%emt
00:00:42]} 68. Kxg5 {[%clk 00:02:19]} {[%emt 00:00:02]} Rf2 {[%clk 00:03:33]}
{[%emt 00:00:26]} 69. Kf4 {[%clk 00:02:21]} {[%emt 00:00:28]} Rd2 {[%clk
00:03:40]} {[%emt 00:00:23]} 70. Bg4+ {[%clk 00:02:08]} {[%emt 00:00:43]} Kd6
{[%clk 00:04:01]} {[%emt 00:00:09]} 71. Bf3 {[%clk 00:02:16]} {[%emt 00:00:21]}
Rb2 {[%clk 00:04:12]} {[%emt 00:00:20]} 72. e4 {[%clk 00:02:11]} {[%emt
00:00:35]} dxe4 {[%clk 00:04:29]} {[%emt 00:00:12]} 73. Kxe4 {[%clk 00:02:18]}
{[%emt 00:00:24]} Rb8 {[%clk 00:04:30]} {[%emt 00:00:30]} 74. Kd3 {[%clk
00:02:23]} {[%emt 00:00:24]} Re8 {[%clk 00:04:51]} {[%emt 00:00:09]} 75. Bd1
{[%clk 00:02:16]} {[%emt 00:00:36]} Rh8 {[%clk 00:05:11]} {[%emt 00:00:11]} 76.
Bf3 {[%clk 00:02:28]} {[%emt 00:00:18]} Rh3 {[%clk 00:05:30]} {[%emt 00:00:11]}
77. Ke4 {[%clk 00:02:47]} {[%emt 00:00:10]} Rh4+ {[%clk 00:05:26]} {[%emt
00:00:34]} 78. Kd3 {[%clk 00:03:12]} {[%emt 00:00:05]} Ke6 {[%clk 00:05:48]}
{[%emt 00:00:08]} 79. Be4 {[%clk 00:03:07]} {[%emt 00:00:35]} Rh3+ {[%clk
00:06:01]} {[%emt 00:00:17]} 80. Kc4 {[%clk 00:03:33]} {[%emt 00:00:05]} Kd6
{[%clk 00:06:16]} {[%emt 00:00:14]} 81. Bd5 {[%clk 00:03:40]} {[%emt 00:00:24]}
Rh8 {[%clk 00:06:34]} {[%emt 00:00:12]} 82. Be4 {[%clk 00:04:01]} {[%emt
00:00:08]} Rc8+ {[%clk 00:06:59]} {[%emt 00:00:05]} 1/2-1/2